Cogmind - Beta 15 X1 @@@ ROGUE MODE // 2024.11.16 @ 16:23:38 Player: trisiak Result: Destroyed by as-02717 with Assembled Rifle Performance ------------- Evolutions (0) 0 Regions Visited (4) 800 Robots Destroyed (30) 150 Value Destroyed (580) 580 Prototype IDs (23) 460 Alien Tech Used (0) 0 Bonus (106) 106 TOTAL SCORE: 2096 Bonus ------- Follower Combat Kills 106 Cogmind --------- Core Integrity 0/250 Matter 263/300 Energy 160/160 System Corruption 5% Temperature Cool (0) Movement Treading (480) Ox4 Location -9/Mines Parts ------- > --- POWER (1) -------- Light Nuclear Core > --- PROPULSION (2) --- Light Treads Compact Wheel > --- UTILITY (2) ------ Huge Storage Unit Hardened Light Armor Plating > --- WEAPON (2) ------- Assault Rifle Shotgun > --- INVENTORY (25) --- Light Ion Engine Light Treads Light Treads Light Treads Light Treads Improved Heat Sink Large Battery (200) Medium Matter Pod (100) Machine Analyzer Makeshift Sensor Array Improved Terrain Scanner Seismic Detector Transport Network Coupler Hardened Light Armor Plating Hardened Light Armor Plating Hardened Light Armor Plating Trap Reconfigurator Shotgun Rocket Launcher Rocket Launcher Rocket Launcher Mini Grenade Launcher Makeshift Hammer Makeshift Sword Peak State ------------ > --- POWER ------------ Light Nuclear Core > --- PROPULSION ------- Light Treads Compact Wheel > --- UTILITY ---------- Huge Storage Unit Trap Reconfigurator > --- WEAPON ----------- Makeshift Hammer Makeshift Sword > --- INVENTORY -------- Light Ion Engine Light Treads Light Treads Light Treads Improved Heat Sink High-capacity Storage Unit Large Battery Medium Matter Pod Machine Analyzer Makeshift Sensor Array Improved Terrain Scanner Seismic Detector Transport Network Coupler Hardened Light Armor Plating Hardened Light Armor Plating Hardened Light Armor Plating Hardened Light Armor Plating Assault Rifle Assault Rifle Shotgun Shotgun Rocket Launcher Rocket Launcher Rocket Launcher Mini Grenade Launcher [Rating: 27] Favorites ----------- Power Light Nuclear Core Engine Light Ion Engine Power Core Light Nuclear Core Propulsion Light Treads Treads Light Treads Leg Aluminum Leg Wheel Compact Wheel Utility Seismic Detector Device Seismic Detector Storage Huge Storage Unit Protection Hardened Light Armor Plating Weapon Assault Rifle Ballistic Gun Assault Rifle Launcher Mini Grenade Launcher Impact Weapon Makeshift Hammer Slashing Weapon Makeshift Sword Build | -11 -10 -10 -10 -9 ------- Run | Yrd Mat Min Exi Min Slots Evolved . | . . . . . Power . | . . . . . Propulsion . | . . . . . Utility . | . . . . . Weapon . | . . . . . Parts Attached 31 | 2 13 7 4 5 Power 6 | . 2 1 1 2 Engine 2 | . 1 . 1 . Core 4 | . 1 1 . 2 Reactor . | . . . . . Propulsion 5 | . 3 1 . 1 Treads 4 | . 2 1 . 1 Leg . | . . . . . Wheel 1 | . 1 . . . Hover . | . . . . . Flight . | . . . . . Utility 11 | 1 5 3 1 1 Device 5 | 1 2 . 1 1 Storage 2 | . 1 1 . . Processor . | . . . . . Hackware . | . . . . . Protection 4 | . 2 2 . . Artifact . | . . . . . Weapon 9 | 1 3 2 2 1 Energy Gun . | . . . . . Energy Cannon . | . . . . . Ballistic Gun 5 | 1 2 1 . 1 Ballistic Cannon . | . . . . . Launcher 2 | . 1 1 . . Special Weapon . | . . . . . Impact Weapon 1 | . . . 1 . Slashing Weapon 1 | . . . 1 . Piercing Weapon . | . . . . . Special Melee Weapon . | . . . . . Unidentified Prototypes . | . . . . . Parts Lost 2 | . . . . 2 Power 1 | . . . . 1 Propulsion . | . . . . . Utility . | . . . . . Weapon 1 | . . . . 1 Highest Loss Streak 1 | . . . . 1 To Critical Strikes . | . . . . . Average Backups 21 | 6 14 22 24 24 Power . | 1 . . 1 . Propulsion 3 | 4 2 3 3 4 Utility 11 | . 7 12 12 12 Weapon 6 | 1 3 6 7 8 Tool/Special . | . . . . . Unused Backups 28 | 5 9 . 3 11 Power 3 | 1 2 . . . Propulsion 9 | 2 4 . 1 2 Utility 12 | 1 2 . 2 7 Weapon 4 | 1 1 . . 2 Tool/Special . | . . . . . Average Slot Usage (%) 99 | . 99 100 100 99 Engine 3 | . 6 4 . . Core 10 | . 7 9 14 13 Treads 14 | . 12 15 14 18 Wheel 12 | . 12 12 14 9 Device 12 | . 13 12 14 5 Storage 14 | . 14 14 14 14 Protection 1 | . . 1 . 8 Ballistic Gun 20 | . 27 25 11 18 Impact Weapon 4 | . . . 10 8 Slashing Weapon 2 | . . . 6 . Peak Build Rating 27 | 9 12 16 27 21 Average Rating 14 | 7 10 13 17 19 On Entrance 11 | 6 9 10 14 20 Naked Turns . | . . . . . Heaviest Build 97 | 15 54 96 91 97 Greatest Support 40 | 20 40 40 16 40 Greatest Overweight (x) 6 | . 3 5 5 6 Average Overweight (x) 3 | . 1 4 5 4 Largest Inventory Capacity 25 | 8 20 25 25 25 Average Capacity 22 | 8 16 24 25 25 Most Carried 25 | 8 20 24 25 25 Average Carried 21 | 6 14 22 24 24 Final Capacity 25 | 8 20 25 25 25 Final Carried 25 | 8 20 24 25 24 Class Distribution -------------------- 100% | Mutant Dominant Class ---------------- Mutant | -10/Materials Mutant | -10/Mines Mutant | -10/Exiles Mutant | -9/Mines Resources | -11 -10 -10 -10 -9 ----------- Run | Yrd Mat Min Exi Min Matter Collected 1695 | 250 481 290 381 293 Remotely . | . . . . . Salvage Created 1321 | 123 331 229 425 213 Parts 85 | 7 32 21 14 11 Haulers Intercepted 2 | . 2 . . . Recyclers Shooed 1 | . 1 . . . Parts Field Recycled . | . . . . . Retrieved Matter . | . . . . . Parts Self-Destructed . | . . . . . Prevented . | . . . . . Kills | -11 -10 -10 -10 -9 ------- Run | Yrd Mat Min Exi Min Combat Hostiles Destroyed 24 | . 7 7 . 10 Melee 2 | . . . . 2 Guns 19 | . 7 4 . 8 AOE 3 | . . 3 . . Classes Destroyed 10 | 2 6 1 . 1 Worker 2 | . 1 1 . . Tunneler 3 | 1 1 . . 1 Hauler 2 | . 2 . . . Recycler 1 | 1 . . . . Mechanic 1 | . 1 . . . Watcher 1 | . 1 . . . Swarmer 10 | . 3 3 . 4 Grunt 8 | . 4 2 . 2 Sentry 2 | . . 2 . . Assembled 4 | . . . . 4 Best Kill Streak 6 | 2 3 3 . 6 Combat Bots Only 6 | . 3 3 . 6 Max Kills in Single Turn 2 | 1 1 2 . 2 Gunslinging 1 | . . . . 1 Exploded 2 | . . 2 . . Melee 1 | . . . . 1 Uniques/NPCs Destroyed . | . . . . . Combat | -11 -10 -10 -10 -9 -------- Run | Yrd Mat Min Exi Min Hostile Shots Fired 123 | . 34 29 . 60 Missed 28 | . 8 9 . 11 Damage Taken 1072 | . 277 271 . 524 Core 261 | . 62 54 . 145 Absorbed by Shields . | . . . . . Core Remaining (%) 100 | 100 . . . . Volleys Fired 89 | 5 52 13 . 19 Largest 2 | 2 2 2 . 2 Hottest 48 | 40 43 46 . 48 Shots Fired 175 | 10 104 24 2 35 Gun 172 | 10 103 22 2 35 Cannon . | . . . . . Launcher 3 | . 1 2 . . Special . | . . . . . Kinetic 172 | 10 103 22 2 35 Thermal . | . . . . . Explosive 3 | . 1 2 . . Electromagnetic . | . . . . . Robot Hit Streak 12 | 2 6 12 . 7 Robot Miss Streak 6 | 3 6 2 . 2 Penetration Max . | . . . . . Secondary Targets 5 | . . 1 . 4 Max Gunslinging Chain 1 | . . 1 . 1 Shots Hit Robots 119 | 4 52 15 20 28 Core Hits 59 | 3 20 13 11 12 Critical Kills 1 | . 1 . . . Critical Parts Destroyed . | . . . . . Critical Strikes 2 | . 1 . 1 . Destroy 1 | . 1 . . . Sever 1 | . . . 1 . Melee Attacks 39 | . . . 30 9 Impact 18 | . . . 11 7 Slashing 21 | . . . 19 2 Piercing . | . . . . . Sneak Attacks 1 | . . . . 1 Combat Hostiles . | . . . . . Follow-up Attacks 1 | . . . 1 . Damage Inflicted 3443 | 46 692 432 1586 687 Guns 1391 | 46 692 196 . 457 Cannons . | . . . . . Explosions 213 | . . 213 . . Melee 1816 | . . . 1586 230 Ramming 23 | . . 23 . . Kinetic 1391 | 46 692 196 . 457 Thermal . | . . . . . Explosive 213 | . . 213 . . Electromagnetic . | . . . . . Impact 305 | . . . 116 189 Slashing 1511 | . . . 1470 41 Piercing . | . . . . . Highest Corruption 5 | . 5 5 5 5 Average Corruption 4 | . 3 5 5 5 Corruption Purged . | . . . . . Corruption Blocked . | . . . . . Effects 81 | . 7 23 37 14 Message Errors 15 | . . 5 7 3 Matter Fused 24 | . 4 6 9 5 Heat Flow Errors 11 | . . 5 4 2 Energy Discharges 9 | . . 4 5 . Data Loss (minor) 8 | . 1 . 5 2 Data Loss (major) 7 | . 1 1 4 1 Misfires 5 | . 1 1 2 1 Alerts 1 | . . . 1 . Weapon Failures 1 | . . 1 . . Overload Shots . | . . . . . Overflow Damage 366 | . . 21 284 61 Projectiles . | . . . . . Explosions 21 | . . 21 . . Melee 345 | . . . 284 61 Knockbacks 1 | . . 1 . . Impact 1 | . . 1 . . Kinetic . | . . . . . Secondary . | . . . . . Self-Inflicted Damage 38 | . 36 2 . . Shots 1 | . 1 . . . Rammed 3 | . . 3 . . Targets Rammed 3 | . . 3 . . Kicked . | . . . . . Crushed . | . . . . . Highest Temperature 266 | . 9 266 246 258 Average Temperature 79 | . 5 73 107 79 Received Heat Transfer 267 | . 69 87 . 111 Effects 1 | . . . . 1 Energy Bleed 1 | . . . . 1 Siege Activations . | . . . . . Martial Activations . | . . . . . Shielding Activations . | . . . . . Robots Disrupted . | . . . . . Combat Hostiles . | . . . . . Robots Corrupted . | . . . . . Combat Hostiles . | . . . . . Parts Fried . | . . . . . Impact Corruptions 1 | . . . . 1 Robots Melted . | . . . . . Combat Hostiles . | . . . . . Parts Melted . | . . . . . Heat Transferred . | . . . . . Parts Sabotaged . | . . . . . Parts Stolen . | . . . . . Parts Stripped . | . . . . . Power Chain Reactions . | . . . . . Alert | -11 -10 -10 -10 -9 ------- Run | Yrd Mat Min Exi Min Maximum Alert Level . | . . . . . Low Security (%) 100 | 100 100 100 . 100 Level 1 . | . . . . . Level 2 . | . . . . . Level 3 . | . . . . . Level 4 . | . . . . . Level 5 . | . . . . . High Security . | . . . . . Max Security . | . . . . . Peak Influence 140 | 10 90 80 . 140 Initial . | . . . . . Average 28 | 1 18 13 . 81 Influence Increases 796 | 10 282 175 15 314 Destroy 0b10 Robot/C 520 | . 140 140 . 240 Destroy 0b10 Robot/NC 65 | 10 30 5 15 5 Destroy Leader 96 | . 36 20 . 40 Allied During Kill 10 | . . . . 10 Successful Hack 35 | . 35 . . . Disable Machine 45 | . 30 . . 15 Destroy Structure 25 | . 11 10 . 4 Influence Decreases 784 | 10 282 175 15 302 Time Decay 744 | 10 282 175 15 262 Lost Part 20 | . . . . 20 Lost Ally 20 | . . . . 20 Squads Dispatched 2 | . 2 . . . Investigation . | . . . . . Extermination . | . . . . . Reinforcement 2 | . 2 . . . Assault . | . . . . . Garrison . | . . . . . Intercept . | . . . . . Searches Triggered . | . . . . . Construction Impeded . | . . . . . Haulers Reinforced . | . . . . . Active Scanning Responses . | . . . . . Cargo Convoy Interrupts . | . . . . . Stealth | -11 -10 -10 -10 -9 --------- Run | Yrd Mat Min Exi Min Distress Signals 1 | . 1 . . . Communications Jammed . | . . . . . Distress Signals . | . . . . . Times Spotted 44 | . 21 7 . 16 Peak Tracking Total 5 | . 4 3 . 5 Tactical Retreats . | . . . . . Traps | -11 -10 -10 -10 -9 ------- Run | Yrd Mat Min Exi Min Traps Triggered 3 | . 3 . . . Indirectly . | . . . . . Trap Hack Attempts . | . . . . . Triggered . | . . . . . Disarmed 6 | . 6 . . . Reprogrammed . | . . . . . Reused . | . . . . . Traps Extracted . | . . . . . Installed . | . . . . . Triggered . | . . . . . Machines | -11 -10 -10 -10 -9 ---------- Run | Yrd Mat Min Exi Min Machines Disabled 4 | . 2 1 . 1 Max in Single Turn 1 | . 1 1 . . Machines Repaired . | . . . . . Machines Dismantled . | . . . . . Machines Sabotaged . | . . . . . Overloaded Fab Kills . | . . . . . Hacking | -11 -10 -10 -10 -9 --------- Run | Yrd Mat Min Exi Min Machines Accessed 9 | . 7 . 2 . Terminals 6 | . 6 . . . Fabricators . | . . . . . Repair Stations . | . . . . . Recycling Units 1 | . 1 . . . Scanalyzers . | . . . . . Garrison Access . | . . . . . Total Hacks 35 | . 22 . 13 . Successful 26 | . 13 . 13 . Failed 9 | . 9 . . . Catastrophic 1 | . 1 . . . Database Lockouts . | . . . . . Manual 18 | . 17 . 1 . Terminals 21 | . 21 . . . Fabricators . | . . . . . Repair Stations . | . . . . . Recycling Units 1 | . 1 . . . Scanalyzers . | . . . . . Garrison Access . | . . . . . Terminal Hacks 20 | . 7 . 13 . Record 12 | . . . 12 . Robot Analysis 2 | . 2 . . . Disarm Traps 1 | . 1 . . . Hauler Manifests 1 | . 1 . . . Zone Layout 3 | . 3 . . . Derelict Proto ID Bank 1 | . . . 1 . Fabricator Hacks . | . . . . . Repair Station Hacks . | . . . . . Recycling Unit Hacks 1 | . 1 . . . Retrieve Components 1 | . 1 . . . Scanalyzer . | . . . . . Garrison Access Hacks . | . . . . . Unauthorized Hacks 5 | . 5 . . . Terminals 5 | . 5 . . . Assimilate 1 | . 1 . . . Botnet 4 | . 4 . . . Fabricators . | . . . . . Repair Stations . | . . . . . Recycling Units . | . . . . . Scanalyzers . | . . . . . Garrison Access . | . . . . . Data Cores Recovered . | . . . . . Used . | . . . . . Hacking Detections 7 | . 7 . . . Full Trace Events 1 | . 1 . . . Feedback Events . | . . . . . Feedback Blocked . | . . . . . Robot Schematics Acquired . | . . . . . Robots Built . | . . . . . Authchips . | . . . . . Time . | . . . . . Total Robot Build Rating . | . . . . . Part Schematics Acquired . | . . . . . Parts Built . | . . . . . Authchips . | . . . . . Time . | . . . . . Total Part Build Rating . | . . . . . Parts Repaired . | . . . . . Time . | . . . . . Parts Recycled . | . . . . . Recycled Matter . | . . . . . Retrieved Matter . | . . . . . Retrieved Components 10 | . 10 . . . Parts Scanalyzed . | . . . . . Part Schematics Acquired . | . . . . . Parts Damaged . | . . . . . Bothacking | -11 -10 -10 -10 -9 ------------ Run | Yrd Mat Min Exi Min Used RIF Installer . | . . . . . Robots Hacked . | . . . . . Non-combat . | . . . . . Combat . | . . . . . Robot Hacks Applied . | . . . . . Relay Couplers Released . | . . . . . Fabnet Peak Effective % . | . . . . . Robots Rewired 3 | . . . 3 . Allies Hacked . | . . . . . Hacks Repelled . | . . . . . Allies | -11 -10 -10 -10 -9 -------- Run | Yrd Mat Min Exi Min Total Allies 3 | . . . 3 . Largest Group 3 | . . . 3 3 Highest-Rated Group 37 | . . . 37 37 Highest-Rated Ally 21 | . . . 21 21 Total Orders . | . . . . . Ally Attacks 12 | . . . . 12 Total Damage 253 | . . . . 253 Kills 7 | . . . . 7 Allies Corrupted . | . . . . . Allies Melted . | . . . . . Intel | -11 -10 -10 -10 -9 ------- Run | Yrd Mat Min Exi Min Active Infowar (turns) 3800 | 24 1101 974 1459 242 Terrain 221 | 24 197 . . . Seismic 3579 | . 904 974 1459 242 Robot Analysis Total 2 | . 2 . . . Derelict Logs Recovered 2 | . . 1 . 1 Drone Launches . | . . . . . Drone Recoveries . | . . . . . Exploration | -11 -10 -10 -10 -9 ------------- Run | Yrd Mat Min Exi Min Turns Passed 4385 | 53 1180 1114 1461 577 Spaces Moved 2296 | 28 731 550 794 193 Core . | . . . . . Treads 108 | . 2 45 . 61 Legs 79 | 28 51 . . . Wheels 2109 | . 678 505 794 132 Hover . | . . . . . Flight . | . . . . . Fastest Speed 100 | 120 100 130 175 175 Average Speed 166 | 120 130 179 175 235 Slowest Speed 480 | 120 240 240 175 480 Overloaded Moves . | . . . . . Propulsion Burnouts . | . . . . . Robots Hopped . | . . . . . Cave-ins Triggered . | . . . . . Exploration Rate (%) 63 | 3 95 94 96 30 Regions Visited 4 Branch Regions 3 Pre-discovered Areas 3 | . . 1 1 1 Known Exits Taken . | . . . . . Unknown Exits Taken 4 | 1 1 1 1 . Scrap Searched 1 | . . 1 . . Spaces Dug 4 | . . . . 4 Terrain Destroyed 27 | . 10 12 . 5 Melee 4 | . . . . 4 Projectile 1 | . . . . 1 AOE 22 | . 10 12 . . Terrain Rammed . | . . . . . Walls Destroyed . | . . . . . Machines Disabled . | . . . . . Actions | -11 -10 -10 -10 -9 --------- Run | Yrd Mat Min Exi Min Total 2643 | 37 850 638 851 267 Wait 101 | . 21 53 1 26 Move 2292 | 27 730 549 793 193 Hop . | . . . . . Pick Up 33 | 2 19 3 9 . Fast Attach 3 | 1 . . . 2 Attach 5 | 1 2 . . 2 Detach 1 | 1 . . . . Swap 53 | . 17 15 8 13 Drop 22 | . 9 2 8 3 Fire 89 | 5 52 13 . 19 Melee 31 | . . . 22 9 Ram 1 | . . 1 . . Kick . | . . . . . Crush 2 | . . 2 . . Escape Stasis . | . . . . . Rewire 10 | . . . 10 . Trap . | . . . . . Miscellaneous . | . . . . . Route ------- -11/Scrapyard -10/Materials (discovered 4 exits: [*Mat x3] / [*Min]) -10/Mines (discovered 4 exits: [*Mat x2] / *Exi / [*Sub]) -10/Exiles (discovered 2 exits: [*Min x2]) -9/Mines History --------- Turn | Location | Event 18 | -11/Scrapyard | Discovered new exit (range 3) 54 | -11/Scrapyard | Entered Materials 170 | -10/Materials | Discovered new exit (range 17) 214 | -10/Materials | Discovered new exit (range 9) 322 | -10/Materials | Build established: Mutant 373 | -10/Materials | Discovered new exit (range 13) 1032 | -10/Materials | Discovered new exit (range 6) 1234 | -10/Materials | Entered Mines 1236 | -10/Mines | Joined a pair of Derelicts in attacking an 0b10 outpost 1323 | -10/Mines | Discovered new exit (range 5) 1432 | -10/Mines | Discovered new exit (range 5) 1521 | -10/Mines | Discovered new exit (range 7) 1635 | -10/Mines | Learned location of Storage (-8) 1662 | -10/Mines | A weapon hastily lodged in a ceiling crevice suddenly fell to the ground 2340 | -10/Mines | Deemed a non-threat by the Exiles lab entrance 2341 | -10/Mines | Discovered new exit (range 5) 2348 | -10/Mines | Entered Exiles 2348 | -10/Exiles | Found Exiles lab destroyed 2371 | -10/Exiles | Discovered new exit (range 15) 2513 | -10/Exiles | Learned location of Zion (-6) 3153 | -10/Exiles | Opened EX-Vault 3161 | -10/Exiles | Found Trap Reconfigurator 3568 | -10/Exiles | Discovered new exit (range 14) 3809 | -10/Exiles | Entered Mines 3809 | -9/Mines | Accompanied by 3 allies 4052 | -9/Mines | Core integrity fell below 50% 4090 | -9/Mines | Core integrity fell below 20% 4134 | -9/Mines | Assembled infested the area 4139 | -9/Mines | Assisted by a Guerilla fighting off Assembled 4386 | -9/Mines | Destroyed by as-02717 with Assembled Rifle Last Messages --------------- 04151_ K-01 Serf collects debris. 04166_ R-06 Scavenger collects Flight Unit. 04182_ K-01 Serf collects debris. 04211_ PUU|NQQI2U6MFNOLT>T3J0X LHU 04230_ System corrupted: Component data lost. 04265_ K-01 Serf collects debris. 04266_ System corrupted: Substantial component data lost. 04296_ Destroyed Asb. Hover Unit. 04296_ as-49073 system corrupted by crushing effect. 04296_ as-49073 destroyed. 04298_ as-81427 destroyed. 04300_ Acquired 13 matter. 04321_ Slug penetrates Wall. 04321_ as-29536 destroyed. 04323_ System corrupted: Matter fused (-7). 04329_ Acquired 17 matter. 04334_ Acquired 16 matter. 04338_ System corrupted: Component data lost. 04377_ as-40121 destroyed. 04379_ Gauss Rifle destroyed. Map ----- +----------------------------------------------------+ | [########### #??##########?????????????????????? | | #???????### #?????????????????????????????????? | | #??????## #?????????????????????????????????? | | ###????### ###???????????????????????????????? | | ??????## ##??????????????????????????????? | | ??????# #??????????????????????????????? | | ??????# ####???????????????????????????? | | ??????## ## #??????????????????????????? | | ???????## ## #?????????????????????????? | | #??????## ### ##????##??????????????????? | | ##???### ##??# #####"#??????????????????? | | #??## ##???# ###?????????????????? | | #?## ##???## "#?????????????????? | | #?# #????## ##?????????????????? | | #??# #?????# #"#?????????????????? | | #??## ##?????# ###?????????????????? | | ##??# ##??????# ##??????????????????? | | #### ## #???????## ##?????????????????? | | ### ########## "#?????????????????? | | # #?# ###?????????????????? | | ## ##?# ##???????????????????? | | ?#### #??### ######### ##????????????????????? | | ????## #???# ######## #?????????????????????? | | ?????## #?# #?????????????????????? | | ??????# ########### ##?????????????????????? | | ??????# #?????????# [@#???????? ??????????? | | ??????# ##?????????# a###### ????????? | | ??????## ##?????????## = ????????? | | ????????###???????#### % %!!% ????????? | | ?????????????????## ####### ????????? | | ?????????????????# ##????????? ?????????? | | ?????????????????# ####????????????????????????? | | ?????????????????## ##???????????????????????????? | | ??????????????????##?????????????????????????????? | | ?????????????????????????????????????????????????? | | ?????????????????????????????????????????????????? | | ?????????????????????????????????????????????????? | | ?????????????????????????????????????????????????? | | ?????????????????????????????????????????????????? | | ?????????????????????????????????????????????????? | | ?????????????????????????????????????????????????? | | ?????????????????????????????????????????????????? | | ?????????????????????????????????????????????????? | | ?????????????????????????????????????????????????? | | ?????????????????????????????????????????????????? | | ?????????????????????????????????????????????????? | | ?????????????????????????????????????????????????? | | ?????????????????????????????????????????????????? | | ?????????????????????????????????????????????????? | | ?????????????????????????????????????????????????? | +----------------------------------------------------+ Best States ------------- Heat Dissipation 25 Energy Generation 14 Energy Capacity 250 Matter Stores 300 Matter Capacity 300 Sight Range 16 Terrain Scan Range 16 Terrain Scan Density 10 Armor Coverage 150 Evasion (%) 55 Recoil Reduction 2 Item Schematics ----------------- None Robot Schematics ------------------ None Fabricated ------------ Nothing Repaired ---------- Nothing Alien Tech Used ----------------- None Achievements -------------- None Challenges ------------ None Game ------ Seed GuidanceDecoderMagmablaster Manual? 0 Play Time 00:31:45 Cumulative 181.8 hours Start 2024.11.16 @ 14:00:29 End 2024.11.16 @ 16:23:38 Sessions 3 Manual Loads 0 Difficulty Rogue Special Mode None Game No. 47 Rogue 41 Adventurer 6 Explorer 0 Win Type - Total 4 Types 3/0/1/0/0/0/0/0/0 Lore% 46 Gallery% 65 Achievement% 56 Wizard Run 0 Options --------- Layout 0 ASCII 0 Keyboard 1 Movement Vi Keybinds 0 Fullscreen 2 Font 24/Tamsyn Map View 76x56 Zoom Use 0% Tactical HUD 1 Map Filters NONE Filters NONE Steam 1 RUN: c79a37f6-1a55-4684-b5cc-69ff76b2d0a3